fUSD/lending_fUSD_20240618
["ID","MTS","AMOUNT","RATE_DAILY","PERIOD"]
[329806225,1718682684747,-541.1,0.00022739,3]
[329806226,1718682684756,-500.0,0.00022739,3]
[329806227,1718682684766,-500.0,0.00022739,3]
[329806228,1718682684775,-500.0,0.00022739,3]
[329806229,1718682684785,-1321.82,0.00022739,3]
[329806230,1718682684794,-19171.36,0.00022739,3]
[329806231,1718682684804,-155.73827687,0.00022739,3]
[329806232,1718682684813,-500.0,0.00022739,3]
[329806233,1718682684824,-553.50414679,0.00022739,3]
[329806234,1718682684833,-623.71,0.00022739,3]
[329806235,1718682684844,-500.0,0.00022739,3]
[329806236,1718682684853,-500.0,0.00022739,3]
[329806237,1718682684863,-6176.04,0.00022739,3]
[329806238,1718682684872,-500.0,0.00022739,3]
[329806239,1718682684882,-500.0,0.00022739,3]
[329806240,1718682684892,-4651.95,0.00022739,3]
[329806241,1718682684901,-500.0,0.00022739,3]
[329806242,1718682684911,-500.0,0.00022739,3]
[329806243,1718682684920,-500.0,0.00022739,3]
[329806244,1718682684930,-649.48,0.00022739,3]
[329806245,1718682684939,-500.0,0.00022739,3]
[329806246,1718682684950,-753.0,0.00022739,3]
[329806247,1718682684960,-500.0,0.00022739,3]
[329806248,1718682684970,-500.0,0.00022739,3]
[329806249,1718682684982,-620.9507745,0.00022739,3]
[329806250,1718682684991,-500.0,0.00022739,3]
[329806251,1718682685000,-526.52849648,0.00022739,3]
[329806252,1718682685009,-1080.8,0.00022739,3]
[329806253,1718682685018,-2380.03,0.00022739,3]
[329806254,1718682685028,-500.0,0.00022739,3]
[329806255,1718682685038,-1644.32,0.00022739,3]
[329806256,1718682685048,-500.0,0.00022739,3]
[329806257,1718682685057,-1613.96,0.00022739,3]
[329806258,1718682685067,-500.0,0.00022739,3]
[329806259,1718682685077,-1256.49,0.00022739,3]
[329806260,1718682685087,-500.0,0.00022739,3]
[329806261,1718682685097,-25687.78,0.00022739,3]
[329806262,1718682685106,-500.0,0.00022739,3]
[329806263,1718682685116,-15764.30701828,0.00022739,3]
[329806264,1718682685172,-661.78970458,0.00022739,3]
[329806265,1718682685184,-744.85131312,0.00022739,3]
[329806266,1718682685196,-299.7033219,0.00022739,3]
[329806267,1718682685207,-337.29999996,0.00022739,3]
[329806268,1718682685218,-500.0,0.00022739,3]
[329806269,1718682685249,-460.39317097,0.00022465,3]
[329806270,1718682685260,-531.33682903,0.00022465,3]
[329806271,1718682685270,-175.214026,0.00022739,3]
[329806272,1718682685282,-755.0,0.00022739,3]
[329806273,1718682685293,-504.22282175,0.00022739,3]
[329806274,1718682685508,-709.33,0.00021917,2]
[329806275,1718682685518,-10610.40045459,0.00022739,3]
[329806276,1718682685530,-459.45105296,0.00022739,3]
[329806277,1718682685542,-753.21999999,0.00022739,3]
[329806278,1718682685554,-7196.26028687,0.00022739,3]
[329806279,1718682685564,-500.0,0.00022739,3]
[329806280,1718682685574,-500.0,0.00022739,3]
[329806281,1718682685584,-1040.74,0.00022739,3]
[329806282,1718682685593,-500.0,0.00022739,3]
[329806283,1718682685603,-500.0,0.00022739,3]
[329806284,1718682685613,-500.05,0.00022739,3]
[329806285,1718682685622,-500.0,0.00022739,3]
[329806286,1718682685632,-500.0,0.00022739,3]
[329806287,1718682685641,-932.04,0.00022739,3]
[329806288,1718682685651,-2212.99,0.00022739,3]
[329806289,1718682685661,-500.0,0.00022739,3]
[329806290,1718682685671,-500.0,0.00022739,3]
[329806291,1718682685680,-812.87,0.00022739,3]
[329806292,1718682685691,-500.0,0.00022739,3]
[329806293,1718682685703,-2622.5,0.00022739,3]
[329806294,1718682685713,-697.31,0.00022739,3]
[329806295,1718682685724,-500.0,0.00022739,3]
[329806296,1718682685746,-879.83,0.00022739,3]
[329806297,1718682685767,-193.06273572,0.00022739,3]
[329806298,1718682685788,-3759.26,0.00022739,3]
[329806299,1718682685809,-501.24,0.00022739,3]
[329806300,1718682685829,-500.0,0.00022739,3]
[329806301,1718682685851,-273.74663735,0.00022739,3]
[329806302,1718682685874,-1019.56,0.00022739,3]
[329806303,1718682685896,-500.0,0.00022739,3]
[329806304,1718682685919,-1137.23,0.00022739,3]
[329806305,1718682685938,-959.63,0.00022739,3]
[329806306,1718682685959,-500.0,0.00022739,3]
[329806307,1718682685972,-1033.0,0.00022739,3]
[329806308,1718682685985,-3323.53,0.00022739,3]
[329806309,1718682685993,-2084.63,0.00022739,3]
[329806310,1718682686003,-500.0,0.00022739,3]
[329806311,1718682686012,-597.03,0.00022739,3]
[329806312,1718682686021,-500.0,0.00022739,3]
[329806313,1718682686030,-1240.2,0.00022739,3]
[329806314,1718682686040,-500.0,0.00022739,3]
[329806315,1718682686050,-500.0,0.00022739,3]
[329806316,1718682686062,-955.07,0.00022739,3]
[329806317,1718682686072,-500.0,0.00022739,3]
[329806318,1718682686084,-1251.63,0.00022739,3]
[329806319,1718682686093,-25567.35,0.00022739,3]
[329806320,1718682686102,-4307.56,0.00022739,3]
[329806321,1718682686111,-1281.09,0.00022739,3]
[329806322,1718682686121,-5933.06,0.00022739,3]
[329806323,1718682686130,-25423.61,0.00022739,3]
[329806324,1718682686139,-500.0,0.00022739,3]
[329806325,1718682686148,-1098.33,0.00022739,3]
[329806326,1718682686158,-5504.91,0.00022739,3]
[329806327,1718682686167,-500.0,0.00022739,3]
[329806328,1718682686176,-500.0,0.00022739,3]
[329806329,1718682686185,-981.69,0.00022739,3]
[329806330,1718682686195,-500.0,0.00022739,3]
[329806331,1718682686204,-1385.88,0.00022739,3]
[329806332,1718682686213,-516.54935239,0.00022739,3]
[329806333,1718682686223,-728.68,0.00022739,3]
[329806334,1718682686234,-2883.4,0.00022739,3]
[329806335,1718682686245,-550.22613134,0.00022739,3]
[329806336,1718682686254,-500.0,0.00022739,3]
[329806337,1718682686263,-500.0,0.00022739,3]
[329806338,1718682686273,-500.0,0.00022739,3]
[329806339,1718682686282,-500.0,0.00022739,3]
[329806340,1718682686291,-1718.08,0.00022739,3]
[329806341,1718682686301,-500.0,0.00022739,3]
[329806342,1718682686315,-971.24,0.00022739,3]
[329806343,1718682686324,-735.1,0.00022739,3]
[329806344,1718682686333,-915.66,0.00022739,3]
[329806345,1718682686343,-5219.52,0.00022739,3]
[329806346,1718682686353,-680.96,0.00022739,3]
[329806347,1718682686363,-500.0,0.00022739,3]
[329806348,1718682686372,-794.95,0.00022739,3]
[329806349,1718682686381,-3872.03,0.00022739,3]
[329806350,1718682686393,-9710.9,0.00022739,3]
[329806351,1718682686402,-500.0,0.00022739,3]
[329806352,1718682686411,-1772.4,0.00022739,3]
[329806353,1718682686420,-1627.6,0.00022739,3]
[329806354,1718682686429,-500.0,0.00022739,3]
[329806355,1718682686438,-1773.58,0.00022739,3]
[329806356,1718682686448,-500.0,0.00022739,3]
[329806357,1718682686457,-500.0,0.00022739,3]
[329806358,1718682686466,-500.0,0.00022739,3]
[329806359,1718682686479,-3961.24,0.00022739,3]
[329806360,1718682686487,-500.0,0.00022739,3]
[329806361,1718682686497,-716.07,0.00022739,3]
[329806362,1718682686506,-292.36719595,0.00022739,3]
[329806363,1718682686515,-2392.42,0.00022739,3]
[329806364,1718682686524,-597.79,0.00022739,3]
[329806365,1718682686533,-3060.74,0.00022739,3]
[329806366,1718682686542,-500.0,0.00022739,3]
[329806367,1718682686552,-500.0,0.00022739,3]
[329806368,1718682686562,-4956.6,0.00022739,3]
[329806369,1718682686571,-1361.07,0.00022739,3]
[329806370,1718682686580,-6046.79,0.00022739,3]
[329806371,1718682686590,-500.0,0.00022739,3]
[329806372,1718682686599,-702.61,0.00022739,3]
[329806373,1718682686610,-6069.34,0.00022739,3]
[329806374,1718682686620,-994.27,0.00022739,3]
[329806375,1718682686630,-637.43,0.00022739,3]
[329806376,1718682686641,-500.0,0.00022739,3]
[329806377,1718682686650,-500.0,0.00022739,3]
[329806378,1718682686659,-626.75,0.00022739,3]
[329806379,1718682686669,-23024.27,0.00022739,3]
[329806380,1718682686678,-500.0,0.00022739,3]
[329806381,1718682686689,-539.69697951,0.00022739,3]
[329806382,1718682686699,-500.0,0.00022739,3]
[329806383,1718682686709,-615.95,0.00022739,3]
[329806384,1718682686719,-501.18650708,0.00022739,3]
[329806385,1718682686732,-583.89513315,0.00022739,3]
[329806386,1718682686742,-1597.76,0.00022739,3]
[329806387,1718682686751,-1078.25,0.00022739,3]
[329806388,1718682686760,-500.0,0.00022739,3]
[329806389,1718682686770,-500.0,0.00022739,3]
[329806390,1718682686780,-2492.55,0.00022739,3]
[329806391,1718682686790,-1122.58,0.00022739,3]
[329806392,1718682686799,-500.0,0.00022739,3]
[329806393,1718682686809,-1781.54,0.00022739,3]
[329806394,1718682686818,-1420.79,0.00022739,3]
[329806395,1718682686829,-2490.2,0.00022739,3]
[329806396,1718682686839,-500.0,0.00022739,3]
[329806397,1718682686850,-2295.93,0.00022739,3]
[329806398,1718682686859,-818.79,0.00022739,3]
[329806399,1718682686869,-500.0,0.00022739,3]
[329806400,1718682686878,-500.0,0.00022739,3]
[329806401,1718682686888,-518.37573927,0.00022739,3]
[329806402,1718682686897,-1123.59,0.00022739,3]
[329806403,1718682686906,-1828.62,0.00022739,3]
[329806404,1718682686916,-500.0,0.00022739,3]
[329806405,1718682686925,-1191.73,0.00022739,3]
[329806406,1718682686934,-500.0,0.00022739,3]
[329806407,1718682686944,-1757.94,0.00022739,3]
[329806408,1718682686953,-500.0,0.00022739,3]
[329806409,1718682686962,-500.0,0.00022739,3]
[329806410,1718682686972,-1392.38,0.00022739,3]
[329806411,1718682686983,-1034.27,0.00022739,3]
[329806412,1718682686992,-7077.28,0.00022739,3]
[329806413,1718682687001,-1192.21,0.00022739,3]
[329806414,1718682687010,-1713.03,0.00022739,3]
[329806415,1718682687020,-500.0,0.00022739,3]
[329806416,1718682687032,-1990.95,0.00022739,3]
[329806417,1718682687041,-1339.88,0.00022739,3]
[329806418,1718682687051,-500.0,0.00022739,3]
[329806419,1718682687060,-2928.54,0.00022739,3]
[329806420,1718682687070,-500.0,0.00022739,3]
[329806421,1718682687080,-602.16,0.00022739,3]
[329806422,1718682687089,-534.14558902,0.00022739,3]
[329806423,1718682687100,-627.75,0.00022739,3]
[329806424,1718682687109,-500.0,0.00022739,3]
[329806425,1718682687119,-5406.84,0.00022739,3]
[329806426,1718682687128,-740.25,0.00022739,3]
[329806427,1718682687138,-1338.09,0.00022739,3]
[329806428,1718682687148,-904.31,0.00022739,3]
[329806429,1718682687158,-2917.23,0.00022739,3]
[329806430,1718682687169,-500.0,0.00022739,3]
[329806431,1718682687178,-500.0,0.00022739,3]
[329806432,1718682687188,-941.21,0.00022739,3]
[329806433,1718682687198,-1459.47,0.00022739,3]
[329806434,1718682687207,-7752.95,0.00022739,3]
[329806435,1718682687217,-500.0,0.00022739,3]
[329806436,1718682687229,-3111.04,0.00022739,3]
[329806437,1718682687239,-500.0,0.00022739,3]
[329806438,1718682687248,-3427.34,0.00022739,3]
[329806439,1718682687257,-500.0,0.00022739,3]
[329806440,1718682687267,-500.0,0.00022739,3]
[329806441,1718682687276,-500.0,0.00022739,3]
[329806442,1718682687286,-500.0,0.00022739,3]
[329806443,1718682687297,-1119.1,0.00022739,3]
[329806444,1718682687310,-521.75801709,0.00022739,3]
[329806445,1718682687320,-2475.34,0.00022739,3]
[329806446,1718682687330,-891.95,0.00022739,3]
[329806447,1718682687340,-2243.62,0.00022739,3]
[329806448,1718682687351,-5774.79,0.00022739,3]
[329806449,1718682687360,-676.52,0.00022739,3]
[329806450,1718682687370,-1676.41,0.00022739,3]
[329806451,1718682687379,-500.0,0.00022739,3]
[329806452,1718682687392,-500.0,0.00022739,3]
[329806453,1718682687403,-500.0,0.00022739,3]
[329806454,1718682687414,-2257.54,0.00022739,3]
[329806455,1718682687425,-4877.0,0.00022739,3]
[329806456,1718682687435,-1820.32,0.00022739,3]
[329806457,1718682687445,-500.0,0.00022739,3]
[329806458,1718682687454,-1054.01,0.00022739,3]
[329806459,1718682687463,-1262.25,0.00022739,3]
[329806460,1718682687475,-500.0,0.00022739,3]
[329806461,1718682687486,-500.0,0.00022739,3]
[329806462,1718682687496,-2319.71,0.00022739,3]
[329806463,1718682687505,-500.0,0.00022739,3]
[329806464,1718682687514,-1137.97,0.00022739,3]
[329806465,1718682687524,-500.0,0.00022739,3]
[329806466,1718682687534,-500.0,0.00022739,3]
[329806467,1718682687544,-500.0,0.00022739,3]
[329806468,1718682687553,-500.0,0.00022739,3]
[329806469,1718682687563,-1285.09,0.00022739,3]
[329806470,1718682687572,-500.0,0.00022739,3]
[329806471,1718682687582,-10143.93,0.00022739,3]
[329806472,1718682687591,-1328.96,0.00022739,3]
[329806473,1718682687600,-2813.25,0.00022739,3]
[329806474,1718682687610,-337.3093204,0.00022739,3]
[329806475,1718682687619,-1380.45,0.00022739,3]
[329806476,1718682687629,-2673.5,0.00022739,3]
[329806477,1718682687638,-3014.84,0.00022739,3]
[329806478,1718682687647,-726.56,0.00022739,3]
[329806479,1718682687657,-500.0,0.00022739,3]
[329806480,1718682687666,-500.0,0.00022739,3]
[329806481,1718682687675,-511.57037122,0.00022739,3]
[329806482,1718682687685,-927.72,0.00022739,3]
[329806483,1718682687694,-500.0,0.00022739,3]
[329806484,1718682687704,-3736.73,0.00022739,3]
[329806485,1718682687714,-5018.67,0.00022739,3]
[329806486,1718682687723,-1063.6,0.00022739,3]
[329806487,1718682687734,-500.0,0.00022739,3]
[329806488,1718682687743,-2100.97,0.00022739,3]
[329806489,1718682687752,-500.0,0.00022739,3]
[329806490,1718682687761,-1025.33,0.00022739,3]
[329806491,1718682687770,-9770.64,0.00022739,3]
[329806492,1718682687779,-1315.61,0.00022739,3]
[329806493,1718682687789,-500.0,0.00022739,3]
[329806494,1718682687798,-3399.0,0.00022739,3]
[329806495,1718682687807,-500.0,0.00022739,3]
[329806496,1718682687816,-1290.61,0.00022739,3]
[329806497,1718682687826,-500.0,0.00022739,3]
[329806498,1718682687835,-500.0,0.00022739,3]
[329806499,1718682687844,-634.18,0.00022739,3]
[329806500,1718682687853,-2353.19,0.00022739,3]
[329806501,1718682687862,-4866.84,0.00022739,3]
[329806502,1718682687872,-1523.64,0.00022739,3]
[329806503,1718682687882,-1106.64,0.00022739,3]
[329806504,1718682687890,-500.0,0.00022739,3]
[329806505,1718682687900,-792.43,0.00022739,3]
[329806506,1718682687909,-500.0,0.00022739,3]
[329806507,1718682687918,-3119.89,0.00022739,3]
[329806508,1718682687927,-4312.81,0.00022739,3]
[329806509,1718682687937,-3474.59,0.00022739,3]
[329806510,1718682687946,-500.0,0.00022739,3]
[329806511,1718682687955,-1067.63,0.00022739,3]
[329806512,1718682687964,-500.0,0.00022739,3]
[329806513,1718682687974,-999.92,0.00022739,3]
[329806514,1718682687986,-500.0,0.00022739,3]
[329806515,1718682687995,-500.0,0.00022739,3]
[329806516,1718682688005,-500.0,0.00022739,3]
[329806517,1718682688014,-2354.82,0.00022739,3]
[329806518,1718682688023,-984.15,0.00022739,3]
[329806519,1718682688033,-1938.31,0.00022739,3]
[329806520,1718682688042,-3829.63,0.00022739,3]
[329806521,1718682688051,-2382.92,0.00022739,3]
[329806522,1718682688060,-500.0,0.00022739,3]
[329806523,1718682688069,-500.0,0.00022739,3]
[329806524,1718682688234,-4802.61,0.00022739,3]
[329806525,1718682688245,-723.34,0.00022739,3]
[329806526,1718682688254,-914.8,0.00022739,3]
[329806527,1718682688263,-4638.23,0.00022739,3]
[329806528,1718682688272,-2310.84,0.00022739,3]
[329806529,1718682688281,-500.0,0.00022739,3]
[329806530,1718682688291,-1712.32,0.00022739,3]
[329806531,1718682688305,-500.0,0.00022739,3]
[329806532,1718682688315,-493.55691117,0.00022739,3]
[329806533,1718682688325,-7408.89,0.00022739,3]
[329806534,1718682688336,-2735.76,0.00022739,3]
[329806535,1718682688347,-500.0,0.00022739,3]
[329806536,1718682688356,-511.66906455,0.00022739,3]
[329806537,1718682688366,-500.0,0.00022739,3]
[329806538,1718682688375,-2484.9,0.00022739,3]
[329806539,1718682688387,-500.0,0.00022739,3]
[329806540,1718682688399,-1852.65,0.00022739,3]
[329806541,1718682688408,-4265.3,0.00022739,3]
[329806542,1718682688417,-2346.11,0.00022739,3]
[329806543,1718682688427,-852.69,0.00022739,3]
[329806544,1718682688436,-2394.26,0.00022739,3]
[329806545,1718682688446,-2140.97,0.00022739,3]
[329806546,1718682688455,-1031.71,0.00022739,3]
[329806547,1718682688465,-500.0,0.00022739,3]
[329806548,1718682688475,-500.0,0.00022739,3]
[329806549,1718682688487,-2402.2,0.00022739,3]
[329806550,1718682688496,-500.0,0.00022739,3]
[329806551,1718682688506,-500.0,0.00022739,3]
[329806552,1718682688515,-500.0,0.00022739,3]
[329806553,1718682688525,-912.12,0.00022739,3]
[329806554,1718682688535,-500.0,0.00022739,3]
[329806555,1718682688545,-4422.65,0.00022739,3]
[329806556,1718682688555,-1203.74,0.00022739,3]
[329806557,1718682688565,-521.88041792,0.00022739,3]
[329806558,1718682688574,-610.61,0.00022739,3]
[329806559,1718682688584,-1401.62,0.00022739,3]
[329806560,1718682688593,-500.0,0.00022739,3]
[329806561,1718682688603,-1976.11,0.00022739,3]
[329806562,1718682688613,-1181.96,0.00022739,3]
[329806563,1718682688622,-571.09,0.00022739,3]
[329806564,1718682688632,-2850.11,0.00022739,3]
[329806565,1718682688641,-4422.59,0.00022739,3]
[329806566,1718682688650,-827.39,0.00022739,3]
[329806567,1718682688659,-1913.02,0.00022739,3]
[329806568,1718682688669,-12979.46,0.00022739,3]
[329806569,1718682688678,-530.22370278,0.00022739,3]
[329806570,1718682688687,-500.0,0.00022739,3]
[329806571,1718682688696,-8710.27,0.00022739,3]
[329806572,1718682688706,-1255.97,0.00022739,3]
[329806573,1718682688716,-3084.98,0.00022739,3]
[329806574,1718682688725,-150.0,0.00022767,2]
[329806575,1718682688741,-160.43127304,0.00022767,5]
[329806576,1718682688751,-168.68431454,0.00022776,2]
[329806577,1718682688760,-163.8,0.0002278,2]
[329806578,1718682688769,-150.0,0.0002278,2]
[329806579,1718682688778,-150.0,0.0002278,2]
[329806580,1718682688789,-150.0,0.0002278,2]
[329806581,1718682688799,-150.0,0.00022791,2]
[329806582,1718682688808,-151.0,0.00022799,3]
[329806583,1718682688817,-2837.27151419,0.00022808,2]
[329806584,1718682688827,-152.0,0.00022812,5]
[329806585,1718682688836,-160.43127304,0.00022849,5]
[329806586,1718682688846,-151.01644661,0.0002285,2]
[329806587,1718682688856,-152.36409454,0.0002286,2]
[329806588,1718682688866,-150.0,0.00022861,2]
[329806589,1718682688875,-300.59065553,0.00022861,2]
[329806590,1718682688885,-150.0,0.00022865,2]
[329806591,1718682688896,-1500.0,0.00022873,2]
[329806592,1718682688906,-442.0,0.00022891,2]
[329806593,1718682688917,-1500.0,0.00022893,2]
[329806594,1718682688927,-194.47671153,0.00022927,2]
[329806595,1718682688937,-179.74607143,0.00022929,2]
[329806596,1718682688947,-1500.0,0.00022939,2]
[329806597,1718682688956,-1500.0,0.00022943,2]
[329806598,1718682688966,-1527.05133448,0.00022944,2]
[329806599,1718682688976,-1500.0,0.00022945,2]
[329806600,1718682688997,-1500.0,0.00022953,2]
[329806601,1718682689007,-160.43127304,0.00022959,5]
[329806602,1718682689017,-150.0,0.00022961,2]
[329806603,1718682689027,-150.0,0.00022961,2]
[329806604,1718682689038,-1500.0,0.00022964,2]
[329806605,1718682689048,-1500.0,0.0002297,2]
[329806606,1718682689058,-150.0,0.00022973,2]
[329806607,1718682689068,-150.0,0.00022974,2]
[329806608,1718682689078,-1500.0,0.00022975,2]
[329806609,1718682689088,-1500.0,0.00022975,2]
[329806610,1718682689098,-150.0,0.0002298,2]
[329806611,1718682689107,-1500.0,0.00022985,2]
[329806612,1718682689118,-150.0,0.00022987,2]
[329806613,1718682689127,-300.0,0.00022987,2]
[329806614,1718682689137,-150.0,0.00022992,2]
[329806615,1718682689147,-1500.0,0.00022992,2]
[329806616,1718682689157,-302.30602022,0.00022994,2]
[329806617,1718682689166,-8286.2921737,0.00022997,2]
[329806618,1718682689176,-5211.495739,0.00022997,2]
[329806619,1718682689186,-3741.5111917,0.00022997,2]
[329806620,1718682689195,-37307.36630505,0.00022997,2]
[329806621,1718682689215,-4596.75961255,0.00022997,2]
[329806622,1718682689225,-755.5271522,0.00022997,2]
[329806623,1718682689244,-895.183681,0.00022997,2]
[329806624,1718682689253,-1034.8402097,0.00022998,2]
[329806625,1718682689263,-249.71970104,0.00023,2]
[329806626,1718682689272,-6419.82455687,0.00023,2]
[329806627,1718682689281,-1000.0,0.00023,2]
[329806628,1718682689291,-3065.3767169,0.00023,14]
[329806629,1718682689300,-979.0,0.00023,6]
[329806630,1718682689314,-10000.0,0.00023,2]
[329806631,1718682689323,-1300.0,0.00023,2]
[329806632,1718682689332,-200.0,0.00023,2]
[329806633,1718682689342,-2837.27151419,0.00023007,2]
[329806634,1718682689352,-1500.0,0.00023011,2]
[329806635,1718682689362,-1645.93464289,0.00023013,5]
[329806636,1718682689372,-500.0,0.00023013,3]
[329806637,1718682689383,-381.98932413,0.00023013,3]
[329806638,1718682689394,-500.0,0.00023013,3]
[329806639,1718682689404,-500.0,0.00023013,3]
[329806640,1718682689413,-500.0,0.00023013,3]
[329806641,1718682689423,-595.67,0.00023013,3]
[329806642,1718682689432,-489.99485719,0.00023013,3]
[329806643,1718682689442,-500.0,0.00023013,3]
[329806644,1718682689452,-585.47,0.00023013,3]
[329806645,1718682689461,-500.0,0.00023013,3]
[329806646,1718682689472,-500.0,0.00023013,3]
[329806647,1718682689486,-500.0,0.00023013,3]
[329806648,1718682689495,-501.95,0.00023013,3]
[329806649,1718682689504,-500.0,0.00023013,3]
[329806650,1718682689514,-500.0,0.00023013,3]
[329806651,1718682689523,-553.38651117,0.00023013,3]
[329806652,1718682689532,-553.29581243,0.00023013,3]
[329806653,1718682689541,-500.0,0.00023013,3]
[329806654,1718682689550,-500.0,0.00023013,3]
[329806655,1718682689559,-500.0,0.00023013,3]
[329806656,1718682689568,-500.0,0.00023013,3]
[329806657,1718682689578,-513.03836538,0.00023013,3]
[329806658,1718682689587,-500.0,0.00023013,3]
[329806659,1718682689597,-241.39087675,0.00023013,3]
[329806660,1718682689607,-582.48,0.00023013,3]
[329806661,1718682689617,-500.0,0.00023013,3]
[329806662,1718682689627,-500.0,0.00023013,3]
[329806663,1718682689636,-500.0,0.00023013,3]
[329806664,1718682689646,-500.0,0.00023013,3]
[329806665,1718682689656,-500.0,0.00023013,3]
[329806666,1718682689665,-717.98,0.00023013,3]
[329806667,1718682689675,-500.0,0.00023013,3]
[329806668,1718682689684,-500.0,0.00023013,3]
[329806669,1718682689693,-778.79,0.00023013,3]
[329806670,1718682689703,-562.19,0.00023013,3]
[329806671,1718682689712,-500.0,0.00023013,3]
[329806672,1718682689721,-500.0,0.00023013,3]
[329806673,1718682689736,-500.0,0.00023013,3]
[329806674,1718682689745,-550.0457105,0.00023013,3]
[329806675,1718682689755,-500.0,0.00023013,3]
[329806676,1718682689764,-500.0,0.00023013,3]
[329806677,1718682689773,-522.57,0.00023013,3]
[329806678,1718682689782,-500.0,0.00023013,3]
[329806679,1718682689791,-500.0,0.00023013,3]
[329806680,1718682689800,-500.0,0.00023013,3]
[329806681,1718682689809,-500.0,0.00023013,3]
[329806682,1718682689818,-500.0,0.00023013,3]
[329806683,1718682689828,-500.0,0.00023013,3]
[329806684,1718682689837,-500.0,0.00023013,3]
[329806685,1718682689846,-500.0,0.00023013,3]
[329806686,1718682689856,-500.0,0.00023013,3]
[329806687,1718682689865,-531.19,0.00023013,3]
[329806688,1718682689874,-500.0,0.00023013,3]
[329806689,1718682689884,-500.0,0.00023013,3]
[329806690,1718682689894,-500.0,0.00023013,3]
[329806691,1718682689903,-500.0,0.00023013,3]
[329806692,1718682689914,-500.0,0.00023013,3]
[329806693,1718682689923,-521.29,0.00023013,7]
[329806694,1718682689933,-500.0,0.00023013,3]
[329806695,1718682689943,-500.0,0.00023013,3]
[329806696,1718682689953,-500.0,0.00023013,3]
[329806697,1718682689963,-500.0,0.00023013,3]
[329806698,1718682689973,-500.0,0.00023013,3]
[329806699,1718682689988,-500.0,0.00023013,3]
[329806700,1718682689997,-500.0,0.00023013,3]
[329806701,1718682690007,-425.30868804,0.00023013,3]
[329806702,1718682690016,-500.0,0.00023013,3]
[329806703,1718682690026,-500.0,0.00023013,3]
[329806704,1718682690038,-500.0,0.00023013,3]
[329806705,1718682690047,-536.85358777,0.00023013,3]
[329806706,1718682690057,-500.0,0.00023013,3]
[329806707,1718682690066,-500.0,0.00023013,3]
[329806708,1718682690075,-590.15,0.00023013,3]
[329806709,1718682690085,-500.0,0.00023013,3]
[329806710,1718682690095,-562.02,0.00023013,3]
[329806711,1718682690104,-500.0,0.00023013,3]
[329806712,1718682690114,-531.71511325,0.00023013,3]
[329806713,1718682690123,-603.93,0.00023013,3]
[329806714,1718682690133,-480.70353456,0.00023013,3]
[329806715,1718682690142,-500.0,0.00023013,3]
[329806716,1718682690151,-500.0,0.00023013,3]
[329806717,1718682690160,-500.0,0.00023013,3]
[329806718,1718682690170,-500.0,0.00023013,3]
[329806719,1718682690179,-500.0,0.00023013,3]
[329806720,1718682690189,-500.0,0.00023013,3]
[329806721,1718682690198,-500.0,0.00023013,3]
[329806722,1718682690208,-500.0,0.00023013,3]
[329806723,1718682690218,-322.84268506,0.00023013,3]
[329806724,1718682690229,-609.04542739,0.00023013,3]